bitfinex/quotes_ETHUSD_20250115
["timestamp","ask_amount","ask_price","bid_price","bid_amount"]
[1736908688580,78.95368916,3215.2,3214.3,3.11106]
[1736908688743,78.95368916,3215.2,3214.4,3.199]
[1736908688947,78.95368916,3215.2,3214.5,0.3199]
[1736908689247,78.95368916,3215.2,3214.6,0.03110095]
[1736908689652,78.95368916,3215.2,3214.6,0.58110095]
[1736908689848,78.95368916,3215.2,3215.0,3.11036]
[1736908690044,78.95368916,3215.2,3215.1,3.66032]
[1736908690379,78.95368916,3215.2,3215.1,4.026352]
[1736908691261,78.95368916,3215.2,3215.1,4.325352]
[1736908692084,78.95368916,3215.2,3215.1,7.325352]
[1736908692384,78.95368916,3215.2,3215.1,10.90325023]
[1736908693881,78.95368916,3215.2,3215.1,7.325352]
[1736908694090,78.95368916,3215.2,3215.1,4.325352]
[1736908695645,78.95368916,3215.2,3215.1,4.126352]
[1736908695896,78.95368916,3215.2,3215.1,4.326352]
[1736908697046,78.95368916,3215.2,3215.1,0.666032]
[1736908697248,78.95368916,3215.2,3215.1,0.3]
[1736908699012,78.95368916,3215.2,3215.1,0.1]
[1736908699173,78.95368916,3215.2,3215.1,0.3]
[1736908699719,78.95368916,3215.2,3215.1,3.41032]
[1736908699922,78.95368916,3215.2,3215.1,7.30446188]
[1736908700251,71.17813916,3215.2,3215.1,7.30446188]
[1736908700499,70.4043349,3215.2,3215.1,10.88236011]
[1736908701369,62.37655413,3215.2,3215.1,10.88236011]
[1736908702113,56.18752962,3215.2,3215.1,10.53821823]
[1736908702254,33.10030152,3215.2,3215.1,13.82221823]
[1736908702764,33.10030152,3215.2,3215.1,10.53821823]
[1736908704309,33.10030152,3215.2,3215.1,3.40932]
[1736908705792,33.10030152,3215.2,3215.1,0.299]
[1736908710031,33.10030152,3215.2,3215.1,0.1]
[1736908710205,33.10030152,3215.2,3215.1,0.299]
[1736908710691,33.10030152,3215.2,3215.1,0.1]
[1736908710899,33.10030152,3215.2,3215.1,0.299]
[1736908714235,38.64206525,3215.2,3215.1,0.1]
[1736908715296,39.08550553,3215.2,3215.1,0.1]
[1736908715502,0.8144,3215.1,3213.7,3.11165]
[1736908715696,3.11089,3214.6,3213.1,3.11218]
[1736908715902,3.14199638,3214.5,3213.2,0.2]
[1736908716136,4.39229823,3214.4,3213.2,0.2]
[1736908716435,0.8144,3214.0,3213.2,0.2]
[1736908716613,0.8144,3214.0,3213.3,0.03111379]
[1736908717123,3.57789823,3214.8,3213.3,0.03111379]
[1736908717439,0.8144,3214.7,3213.7,0.55]
[1736908717638,0.8144,3214.7,3213.9,0.55]
[1736908717948,0.8144,3214.7,3214.0,0.23110607]
[1736908718100,0.84547638,3215.1,3214.0,0.2]
[1736908718434,3.1105,3215.0,3214.0,0.2]
[1736908718601,3.14157638,3215.0,3214.0,0.2]
[1736908718802,0.8144,3215.1,3214.1,3.69236578]
[1736908720042,0.8144,3215.1,3214.1,0.58110578]
[1736908720213,33.10030152,3215.2,3214.8,3.57789823]
[1736908720536,33.10030152,3215.2,3215.1,3.11032]
[1736908720737,33.10030152,3215.2,3215.1,0.2]
[1736908721038,33.10030152,3215.2,3215.1,3.31032]
[1736908722361,33.10030152,3215.2,3215.1,6.31032]
[1736908726545,33.10030152,3215.2,3215.1,7.48523043]
[1736908727625,29.99008152,3215.2,3215.1,7.48523043]
[1736908728139,28.43497152,3215.2,3215.1,7.48523043]
[1736908728356,20.65942152,3215.2,3215.1,7.98523043]
[1736908728733,0.774,3217.2,3215.9,0.25]
[1736908728937,0.774,3217.2,3216.5,3.10892]
[1736908729113,0.774,3217.2,3216.6,3.34192037]
[1736908731494,0.774,3217.2,3216.6,0.202]
[1736908731791,0.774,3217.2,3216.7,0.202]
[1736908731961,0.774,3217.2,3216.8,0.202]
[1736908732155,0.774,3217.2,3216.9,0.202]
[1736908732340,0.774,3217.2,3216.0,3.10944]
[1736908732341,0.03107638,3217.1,3216.0,3.10944]
[1736908732550,0.774,3217.0,3216.1,0.202]
[1736908732859,0.774,3217.0,3216.0,3.10944]
[1736908733191,0.774,3217.0,3216.1,0.202]
[1736908733779,0.774,3216.9,3216.1,0.202]
[1736908733977,0.3774,3216.8,3216.2,0.202]
[1736908734290,0.774,3216.7,3216.2,0.202]
[1736908735073,0.774,3216.7,3216.3,0.202]
[1736908735284,0.80507638,3216.6,3216.4,0.202]
[1736908735485,0.39139364,3216.5,3216.4,0.202]
[1736908735653,1.16539364,3216.5,3216.4,0.202]
[1736908736987,1.79178724,3216.5,3216.4,0.202]
[1736908743364,1.4003936,3216.5,3216.4,0.202]
[1736908745096,3.1099,3215.6,3215.4,0.202]
[1736908745276,0.7781,3215.4,3215.3,0.202]
[1736908746093,3.0,3215.2,3214.9,0.202]
[1736908746292,0.7781,3215.0,3214.9,0.202]
[1736908747701,3.10984,3215.6,3214.9,0.202]
[1736908747914,0.7781,3215.5,3214.9,0.202]
[1736908748117,0.7781,3216.2,3215.0,0.03110207]
[1736908748275,0.7781,3216.2,3215.5,3.10991]
[1736908748276,0.627417,3216.1,3215.5,3.10991]
[1736908748481,0.7781,3216.6,3215.6,0.03109309]
[1736908748733,0.7781,3216.6,3216.0,3.10944]
[1736908748940,0.7781,3217.1,3216.1,0.23308815]
[1736908749437,0.7781,3217.1,3216.3,3.10913]
[1736908749722,0.7781,3217.1,3216.4,0.03108488]
[1736908749891,0.7781,3217.1,3216.1,3.31131]
[1736908750094,3.57789823,3216.9,3216.1,0.202]
[1736908750285,0.61794373,3217.3,3216.1,0.202]
[1736908750286,3.57789823,3216.6,3216.1,0.202]
[1736908750486,3.60897461,3216.6,3216.1,0.202]
[1736908750698,3.57789823,3216.6,3216.1,0.202]
[1736908750900,0.7781,3216.7,3216.1,0.202]
[1736908751718,3.88687,3216.7,3216.1,0.202]
[1736908752025,0.39179464,3216.6,3216.1,0.202]
[1736908752816,0.7781,3216.7,3216.1,0.202]
[1736908753016,3.57789823,3216.9,3216.2,0.03108717]
[1736908755992,0.7781,3217.0,3216.2,0.03108717]
[1736908756583,0.7781,3217.0,3216.1,0.202]
[1736908757095,3.60897461,3216.9,3215.1,0.61964653]
[1736908757298,0.7781,3217.0,3215.2,0.23409035]
[1736908757500,4.37279823,3217.3,3216.2,3.10925]
[1736908757695,4.37279823,3217.3,3216.3,3.31213]
[1736908758219,4.9991726,3217.3,3216.3,3.31213]
[1736908758619,4.9991726,3217.3,3216.4,0.03108313]
[1736908758795,4.9991726,3217.3,3216.3,3.34321236]
[1736908759411,4.37279823,3217.3,3216.3,3.34321236]
[1736908759680,0.7949,3217.3,3216.4,3.10906]
[1736908759917,0.7949,3217.3,3216.5,0.03108239]
[1736908762336,3.57789823,3216.8,3216.6,0.203]
[1736908762487,3.7968,3216.7,3215.1,3.1103]
[1736908762689,3.10917,3216.3,3215.2,0.203]
[1736908763134,3.10917,3216.3,3214.8,0.03109285]
[1736908763135,3.10944,3216.1,3214.8,3.11054]
[1736908763291,3.10944,3216.1,3214.7,0.61013781]
[1736908763292,0.03107638,3216.0,3214.9,0.203]
[1736908763511,0.7968,3215.8,3214.9,0.203]
[1736908763757,3.14084638,3215.7,3214.9,0.203]
[1736908764319,3.57789823,3215.6,3214.9,0.203]
[1736908764620,3.14103638,3215.5,3214.9,0.203]
[1736908765014,3.57789823,3215.6,3214.9,0.203]
[1736908765213,6.71881461,3215.6,3214.9,0.203]
[1736908765433,6.68773823,3215.6,3214.9,0.203]
[1736908765651,6.68773823,3215.6,3215.0,0.203]
[1736908766636,3.57789823,3215.6,3215.0,0.203]
[1736908766831,3.10993,3215.5,3215.0,0.203]
[1736908767170,0.7968,3215.8,3215.1,0.03110045]
[1736908767347,0.7968,3215.8,3215.0,0.23409889]
[1736908767647,0.7968,3215.8,3215.0,0.203]
[1736908767810,0.82787638,3215.8,3215.0,0.203]
[1736908768017,3.93752638,3215.8,3215.0,0.203]
[1736908769553,3.93752638,3215.8,3215.0,0.23409895]
[1736908769754,3.93752638,3215.8,3215.0,0.203]
[1736908770446,3.93752638,3215.8,3214.7,0.03109896]
[1736908770447,3.93752638,3215.8,3215.1,0.203]
[1736908770830,0.82787638,3215.8,3215.1,0.203]
[1736908771034,3.3579,3217.7,3215.1,0.203]
[1736908771035,0.7968,3216.1,3215.2,0.03109898]
[1736908771242,0.7968,3216.1,3215.2,3.14128898]
[1736908771934,0.7968,3216.1,3215.2,3.11019]
[1736908772341,0.7968,3216.1,3215.1,0.23409377]
[1736908775254,0.7968,3216.1,3215.2,3.11021]
[1736908775458,0.7566,3216.7,3215.8,3.10959]
[1736908775633,0.7566,3217.0,3216.1,3.10932]
[1736908775833,0.7566,3217.3,3216.2,0.23408704]
[1736908776048,4.33449823,3217.6,3216.4,3.10906]
[1736908776249,0.7566,3217.6,3216.5,3.14001303]
[1736908777359,3.86452,3217.6,3216.5,3.14001303]
[1736908777533,3.13911638,3217.5,3216.5,0.03108303]
[1736908777740,3.13911638,3217.5,3216.4,3.0]
[1736908777939,3.13911638,3217.5,3050.0,0.05]
[1736908777940,0.25,3216.1,3215.0,0.06226823]
[1736908778134,0.5,3215.6,3215.1,0.203]
[1736908778471,0.25,3215.4,3215.1,0.203]
[1736908780245,3.0,3216.1,3215.2,0.03109845]
[1736908780246,0.25,3215.8,3215.2,0.03109845]
[1736908780445,0.25,3215.8,3215.1,0.203]
[1736908780446,0.25,3215.8,3215.1,0.23409626]
[1736908780649,0.25,3215.8,3215.1,3.14136626]
[1736908780845,0.25,3215.8,3215.4,3.10997]
[1736908781045,0.25,3215.8,3215.3,3.11011]
[1736908781272,0.25,3215.6,3215.2,0.203]
[1736908781764,0.25,3215.6,3215.2,0.2340957]
[1736908782185,0.25,3215.8,3215.3,3.11009]
[1736908782362,0.25,3215.6,3215.4,0.03109544]
[1736908782679,0.25,3215.8,3215.4,0.03109592]
[1736908783104,0.25,3215.6,3215.3,0.03109565]
[1736908783249,0.25,3215.6,3215.2,0.203]
[1736908783561,0.7911,3216.3,3215.2,0.203]
[1736908783562,0.25,3216.0,3215.3,0.03109558]
[1736908783883,0.5,3216.4,3215.9,3.10953]
[1736908784042,0.25,3216.4,3216.0,3.14050847]
[1736908785257,0.25,3216.6,3216.1,3.10933]
[1736908785457,0.25,3216.6,3216.2,0.23408786]
[1736908785783,0.25,3216.5,3216.2,0.23408786]
[1736908786150,0.25,3216.3,3216.2,0.23408786]
[1736908786349,0.25,3216.5,3216.2,0.23408786]
[1736908787260,0.25,3216.3,3216.2,0.23408786]
[1736908787473,0.25,3216.3,3216.2,0.203]
[1736908788067,0.25,3216.6,3216.2,0.203]
[1736908789202,0.25,3216.6,3216.3,0.03108591]
[1736908789379,0.25,3216.6,3216.2,0.203]
[1736908789869,0.25,3216.6,3216.3,3.14023597]
[1736908790179,0.5,3216.8,3216.3,3.14023597]
[1736908790705,0.25,3216.6,3216.3,3.14023597]
[1736908791208,0.5,3216.8,3216.3,3.14023597]
[1736908792005,3.10877,3216.7,3216.3,0.03108597]
[1736908792210,0.25,3216.1,3215.5,3.10985]
[1736908792392,0.25,3215.7,3215.6,0.201]
[1736908796187,0.25,3215.7,3215.1,0.03109654]
[1736908796401,0.25,3215.7,3215.6,0.201]
[1736908796566,0.25,3215.9,3215.6,0.201]
[1736908796885,0.5,3216.2,3215.8,3.10962]
[1736908797201,0.25,3216.5,3215.9,0.03109094]
[1736908797358,0.25,3216.8,3216.5,3.10887]
[1736908797557,0.25,3216.8,3216.6,3.30987]
[1736908797769,0.25,3216.8,3216.7,0.201]
[1736908800491,0.25,3216.1,3215.6,3.10975]
[1736908800658,0.25,3216.1,3215.7,0.201]
[1736908800853,0.25,3216.3,3215.8,0.03109067]
[1736908801059,0.25,3216.3,3216.2,3.10925]
[1736908801471,0.25,3216.3,3216.0,3.10944]
[1736908801666,0.25,3216.3,3216.1,0.03108843]
[1736908802356,0.25,3216.3,3215.7,0.201]
[1736908802357,0.25,3216.0,3215.7,0.201]
[1736908804494,0.03107638,3216.7,3215.3,3.0]
[1736908804495,0.25,3215.8,3215.3,3.11007]
[1736908804831,0.25,3215.3,3214.6,3.11071]
[1736908805056,0.25,3215.3,3215.1,0.201]
[1736908805731,0.25,3215.3,3215.2,0.0310976]
[1736908806227,0.25,3215.3,3215.1,3.34239766]
[1736908806927,0.25,3215.1,3214.6,3.11078]
[1736908807119,0.25,3215.1,3215.0,0.26326823]
[1736908812026,0.63278982,3215.1,3215.0,0.26326823]
[1736908813561,0.25,3215.1,3215.0,0.26326823]
[1736908814748,1.0339,3215.1,3215.0,0.26326823]
[1736908816358,1.0339,3215.1,3215.0,0.06226823]
[1736908816535,4.14422,3215.1,3215.0,0.06226823]
[1736908816739,1.0339,3215.1,3215.0,0.06226823]
[1736908816965,2.1621712,3215.1,3215.0,0.06226823]
[1736908821088,0.25,3215.1,3215.0,0.06226823]
[1736908821290,0.25,3215.5,3215.0,3.20374837]
[1736908821589,0.5,3215.5,3215.0,0.09336837]
[1736908821792,0.25,3215.1,3215.0,0.06226823]
[1736908821985,3.71032,3215.1,3215.0,0.06226823]
[1736908822196,3.74139638,3215.1,3215.0,0.06226823]
[1736908822409,4.50869638,3215.1,3215.0,0.06226823]
[1736908823876,1.0173,3215.1,3215.0,0.06226823]
[1736908824088,0.25,3215.1,3215.0,0.06226823]
[1736908824686,3.82789823,3215.1,3215.0,0.06226823]
[1736908824883,11.28659461,3215.1,3215.0,0.06226823]
[1736908825085,11.25551823,3215.1,3215.0,0.06226823]
[1736908825293,12.40607005,3215.1,3215.0,0.06226823]
[1736908825970,0.25,3214.1,3213.3,3.11199]
[1736908826167,0.25,3214.1,3212.6,3.11273]
[1736908826168,0.25,3213.6,3212.3,6.69083823]
[1736908826382,0.25,3213.6,3213.3,3.11205]
[1736908826592,0.25,3213.6,3213.4,0.199]
[1736908827311,0.25,3213.8,3213.5,3.11186]
[1736908827711,0.25,3213.8,3213.7,3.11167]
[1736908827894,0.25,3214.2,3214.0,3.11136]
[1736908828094,0.25,3214.2,3214.1,3.11129]
[1736908828295,0.25,3214.4,3213.7,3.14271759]
[1736908828499,0.25,3214.4,3214.3,3.11109]
[1736908828680,0.25,3214.6,3214.5,3.1109]
[1736908828884,0.25,3214.8,3214.6,3.1108]
[1736908829507,0.5,3214.8,3214.6,3.1108]
[1736908829919,0.25,3214.8,3214.6,3.1108]
[1736908830421,0.5,3214.8,3214.6,3.1108]
[1736908830603,0.5,3214.8,3214.5,0.199]
[1736908830937,0.5,3214.2,3212.8,3.57789823]
[1736908831221,0.25,3213.7,3213.4,3.11196]
[1736908831416,0.25,3213.7,3213.5,3.11185]
[1736908831584,0.25,3213.7,3213.5,3.14296415]
[1736908831786,0.25,3213.7,3213.6,0.03111401]
[1736908832088,0.25,3213.7,3213.5,3.11186]
[1736908832314,0.25,3213.7,3213.6,0.03111423]
[1736908832616,0.25,3213.7,3213.5,3.11186]
[1736908832917,0.5,3214.4,3213.6,0.03111399]
[1736908833093,0.5,3214.6,3214.5,3.1109]
[1736908833299,0.25,3214.8,3214.7,3.11071]
[1736908833512,0.25,3214.8,3214.5,0.199]
[1736908833513,0.25,3214.8,3214.5,3.30986]
[1736908833816,0.25,3214.6,3214.5,0.199]
[1736908834019,0.25,3215.0,3214.5,0.199]
[1736908834020,0.25,3214.9,3214.7,3.11066]
[1736908834222,0.25,3214.9,3214.7,3.11065]
[1736908834520,0.25,3214.9,3214.7,3.14175172]
[1736908834724,0.25,3214.9,3214.5,3.30987]
[1736908835138,0.25,3214.7,3214.5,0.199]
[1736908835665,0.25,3214.7,3214.5,0.23010438]
[1736908836162,0.25,3214.7,3214.5,0.199]
[1736908836456,0.25,3214.7,3214.6,3.1108]
[1736908837009,0.25,3214.7,3214.5,0.23010337]
[1736908837202,0.25,3214.7,3213.6,0.03110288]
[1736908837562,0.25,3214.3,3213.7,3.31067]
[1736908837737,0.25,3214.3,3213.8,3.03110722]
[1736908837936,0.25,3214.3,3214.0,3.1113]
[1736908838461,0.25,3214.0,3213.8,3.11157]
[1736908838626,0.25,3214.0,3213.9,0.199]
[1736908839138,0.25,3213.8,3213.3,0.62783371]
[1736908839309,0.25,3213.8,3213.7,3.11167]
[1736908839511,0.25,3214.0,3213.8,3.11155]
[1736908839716,0.25,3214.2,3214.1,3.11129]
[1736908840027,0.25,3214.2,3213.9,3.11146]
[1736908840705,0.25,3214.0,3213.5,0.03110938]
[1736908840910,0.25,3214.0,3213.6,3.11177]
[1736908841214,0.25,3214.0,3213.8,3.11149]
[1736908841651,0.25,3214.2,3213.9,3.14258929]
[1736908841827,0.25,3214.5,3214.4,3.111]
[1736908842010,0.25,3214.5,3214.4,0.199]
[1736908842228,0.25,3213.8,3212.7,3.11264]
[1736908842425,0.25,3213.8,3212.8,0.23011251]
[1736908842841,0.25,3213.4,3212.8,0.23011251]
[1736908843040,0.25,3213.9,3213.5,3.11187]
[1736908843247,0.25,3213.7,3213.6,3.11177]
[1736908845153,0.25,3213.7,3213.6,3.31077]
[1736908846737,0.25,3213.9,3213.8,3.11158]
[1736908846943,6.68854823,3214.8,3213.8,3.11158]
[1736908846944,0.5,3214.3,3214.2,3.11119]
[1736908847114,0.25,3214.7,3214.6,3.1108]
[1736908847320,0.25,3214.8,3214.7,3.11071]
[1736908847622,0.25,3214.8,3214.7,3.1417923]
[1736908847823,0.25,3214.8,3214.6,0.207]
[1736908848022,0.5,3214.8,3214.6,0.207]
[1736908848224,0.8024,3214.7,3214.6,0.207]
[1736908848547,0.25,3213.9,3213.8,3.11158]
[1736908848747,0.25,3213.9,3213.8,0.207]
[1736908849128,0.25,3214.1,3213.8,0.207]
[1736908849341,0.25,3214.1,3213.9,3.11148]
[1736908849631,0.25,3214.3,3213.9,0.03111049]
[1736908850250,0.25,3214.3,3214.2,3.11119]
[1736908850448,0.25,3214.0,3213.8,0.207]
[1736908850846,0.25,3214.0,3213.8,3.31856]
[1736908851920,0.25,3214.0,3213.8,0.207]
[1736908852452,0.25,3214.0,3213.8,0.23811266]
[1736908852646,0.25,3214.0,3213.8,0.207]
[1736908853747,0.25,3214.0,3213.9,0.207]
[1736908853953,0.25,3213.7,3213.4,3.11194]
[1736908854174,0.25,3213.7,3213.5,0.207]
[1736908854470,0.25,3213.7,3213.5,3.31884]
[1736908855010,0.25,3214.0,3213.5,0.23811329]
[1736908855204,0.25,3214.2,3213.9,3.11147]
[1736908855357,0.25,3214.1,3214.0,0.03110952]
[1736908855669,0.25,3213.9,3213.8,3.11153]
[1736908856372,0.25,3213.7,3213.6,3.11174]
[1736908856843,0.5,3214.0,3213.7,3.11165]
[1736908857174,0.5,3214.0,3213.8,0.03111265]
[1736908857370,0.5,3214.0,3213.8,3.11157]
[1736908857969,0.5,3214.0,3213.7,0.03111267]
[1736908858172,0.5,3214.0,3213.6,3.11174]
[1736908858577,0.5,3214.0,3213.7,3.11166]
[1736908858877,0.5,3214.0,3213.7,3.14277266]
[1736908859059,0.5,3214.0,3213.8,3.11157]
[1736908859263,0.5,3214.0,3213.5,0.207]
[1736908859264,0.25,3214.0,3213.9,3.11148]
[1736908859671,0.25,3214.2,3214.0,3.11136]
[1736908860349,0.25,3214.0,3213.8,3.11157]
[1736908860548,0.25,3213.7,3213.6,3.11174]
[1736908862138,0.25,3213.7,3213.5,0.207]
[1736908862342,0.25,3213.9,3213.4,3.11192]
[1736908862343,0.25,3213.5,3213.4,3.11192]
[1736908862579,0.25,3213.5,3213.4,3.31892]
[1736908862879,0.25,3213.5,3213.2,3.11213]
[1736908863085,0.5,3213.1,3212.7,3.11257]
[1736908863380,0.25,3212.9,3212.5,8.48951252]
[1736908863585,0.25,3212.7,3212.6,3.31974]
[1736908866406,0.25,3212.7,3212.6,0.207]
[1736908866567,0.5,3212.7,3212.6,0.207]
[1736908866767,1.3164,3212.7,3212.6,0.207]
[1736908866976,0.25,3212.3,3212.1,2.243]
[1736908867169,0.25,3212.3,3212.2,0.207]
[1736908867382,0.5,3212.3,3212.2,0.207]
[1736908868010,0.5,3212.3,3212.1,2.243]
[1736908868228,0.5,3212.3,3210.9,0.03113192]
[1736908868229,0.25,3211.4,3210.9,0.03113192]
[1736908868512,0.25,3211.6,3211.0,0.207]
[1736908868672,0.25,3211.6,3211.5,3.1138]
[1736908868869,0.5,3211.8,3211.6,3.11368]
[1736908869499,0.5,3211.8,3211.7,0.207]
[1736908870011,0.5,3211.8,3211.7,3.32061]
[1736908870207,0.25,3211.8,3211.7,3.32061]
[1736908870612,0.25,3212.0,3211.9,3.11342]
[1736908871301,0.25,3212.0,3211.7,0.207]
[1736908871497,0.25,3211.8,3211.7,0.207]
[1736908873224,0.5,3211.8,3211.7,0.207]
[1736908873639,0.25,3211.4,3211.1,3.14532491]
[1736908873850,0.5,3211.4,3211.2,0.207]
[1736908874049,0.25,3211.4,3211.3,0.0311345]
[1736908874422,0.25,3211.6,3211.5,3.1138]
[1736908874635,0.25,3211.6,3211.3,0.5811345]
[1736908875148,0.5,3211.6,3211.5,3.1138]
[1736908875355,0.25,3211.8,3211.7,3.11361]
[1736908875518,0.5,3211.8,3211.7,3.11361]
[1736908875718,0.25,3211.8,3211.7,3.11361]
[1736908878473,0.25,3212.3,3212.0,0.55]
[1736908878678,0.25,3212.2,3212.1,0.03112589]
[1736908878948,0.5,3211.8,3211.2,3.1141]
[1736908879150,0.5,3211.8,3211.5,3.11374]
[1736908879447,0.5,3211.8,3211.6,0.211]
[1736908882037,0.25,3211.4,3211.2,3.11406]
[1736908882240,0.25,3211.2,3211.1,3.11416]
[1736908882441,0.25,3211.2,3211.1,3.35629623]
[1736908883380,0.25,3211.6,3211.2,0.55]
[1736908883543,0.25,3211.7,3211.5,3.11378]
[1736908884180,0.25,3211.4,3211.3,3.11391]
[1736908884676,0.5,3212.0,3211.6,0.55]
[1736908884878,0.25,3212.2,3212.1,3.11322]
[1736908885064,0.5,3212.2,3212.1,3.32422]
[1736908886014,0.5,3212.2,3212.1,0.211]
[1736908886157,1.3293,3212.2,3212.1,0.211]
[1736908888873,0.25,3211.6,3211.0,3.7417109]
[1736908889080,0.8293,3212.2,3210.8,3.57806756]
[1736908889081,0.25,3211.4,3210.8,3.11447]
[1736908889279,0.25,3211.3,3211.1,3.11417]
[1736908889476,0.25,3211.3,3211.2,3.1141]
[1736908892230,0.25,3211.3,3211.2,3.6641]
[1736908892372,0.25,3211.6,3211.3,0.55]
[1736908892706,0.25,3211.6,3211.5,3.1138]
[1736908894103,0.25,3211.7,3211.6,3.11371]
[1736908894411,0.25,3212.2,3211.9,0.55]
[1736908894571,0.25,3212.3,3212.1,3.11322]
[1736908894771,0.25,3212.4,3212.3,3.11303]
[1736908895095,3.57806756,3213.5,3212.3,3.11303]
[1736908895096,0.25,3212.7,3212.6,3.11274]
[1736908895306,0.25,3212.9,3212.8,3.11254]
[1736908895483,0.5,3212.9,3212.8,3.11254]
[1736908900632,0.25,3212.9,3212.4,0.03112031]
[1736908900803,0.5,3213.1,3213.0,3.11235]
[1736908901009,0.25,3213.1,3213.0,3.32335]
[1736908902101,0.25,3213.1,3213.0,0.211]
[1736908902301,0.25,3212.5,3211.9,3.11342]
[1736908902536,0.25,3212.5,3212.3,3.11303]
[1736908902737,0.25,3212.4,3212.3,3.11303]
[1736908903946,0.25,3212.5,3212.4,3.11293]
[1736908904836,0.25,3212.5,3212.4,3.32393]
[1736908905333,0.25,3212.5,3212.4,3.87393]
[1736908905535,0.25,3212.8,3212.7,3.66264]
[1736908905917,0.25,3213.0,3212.8,0.55]
[1736908906119,0.5,3213.0,3212.9,3.66245]
[1736908907027,0.25,3212.6,3212.4,0.211]
[1736908907226,0.25,3212.6,3212.4,3.32391]
[1736908907430,0.25,3212.5,3212.4,3.32391]
[1736908907633,0.25,3212.5,3212.4,0.211]
[1736908908216,0.25,3212.5,3212.4,3.32393]
[1736908908811,0.25,3212.5,3212.4,3.11293]
[1736908909137,0.25,3212.5,3212.4,3.32293]
[1736908911073,0.25,3212.2,3211.5,0.7987]
[1736908911274,0.25,3211.8,3211.7,3.11361]
[1736908911478,0.25,3211.8,3211.7,3.32361]
[1736908912867,0.25,3212.0,3211.9,3.66342]
[1736908913177,0.5,3212.0,3211.9,3.66342]
[1736908913564,0.5,3212.0,3211.9,3.6945485]
[1736908914076,0.5,3212.0,3211.9,3.69454892]
[1736908915377,0.5,3212.0,3211.9,3.66342]
[1736908915756,0.25,3211.8,3211.7,6.32359]
[1736908916578,0.5,3211.8,3211.7,3.32359]
[1736908916967,0.5,3211.8,3211.7,3.87359]
[1736908919696,0.5,3211.8,3211.7,3.32359]
[1736908921312,0.5,3211.8,3211.7,0.21]
[1736908921803,0.5,3212.0,3211.8,3.55]
[1736908921962,0.5,3212.0,3211.9,3.14454805]
[1736908922359,0.25,3212.0,3211.9,3.14454805]
[1736908922662,0.5,3212.2,3212.1,3.11322]
[1736908923418,0.25,3212.2,3212.1,3.11322]
[1736908923599,0.5,3212.2,3212.1,3.11322]
[1736908925810,0.5,3212.2,3211.7,0.21]
[1736908925811,0.25,3211.9,3211.7,0.21]
[1736908926017,0.25,3211.9,3211.8,3.11351]
[1736908926194,0.25,3211.9,3211.8,6.11351]
[1736908928595,0.25,3211.7,3211.5,3.11375]
[1736908928801,0.25,3211.7,3211.6,3.21]
[1736908928978,0.25,3211.7,3211.6,0.21]
[1736908929397,0.25,3211.7,3211.6,3.21]
[1736908931001,0.25,3211.7,3211.3,3.11397]
[1736908931206,0.25,3211.3,3211.1,3.11415]
[1736908931521,0.8313,3211.9,3211.1,3.11415]
[1736908931522,0.25,3211.7,3211.3,0.55]
[1736908931822,0.25,3211.7,3211.6,3.11371]
[1736908932220,0.25,3212.1,3212.0,6.66332]
[1736908932516,0.25,3212.5,3212.4,6.11293]
[1736908932723,0.25,3212.5,3212.4,0.21]
[1736908933005,1.0813,3212.5,3212.4,0.21]
[1736908934294,1.50982703,3212.5,3212.4,0.21]
[1736908935007,1.0813,3212.5,3212.4,0.21]
[1736908935324,0.25,3211.9,3211.8,3.0]
[1736908935482,0.25,3211.9,3211.8,3.21]
[1736908936269,0.25,3211.2,3211.1,3.1141]
[1736908936482,0.25,3211.2,3211.1,3.3241]
[1736908937095,0.25,3211.2,3211.1,6.3241]
[1736908937415,0.5,3211.2,3211.1,3.3241]
[1736908939719,0.25,3211.6,3211.5,3.6638]
[1736908940026,0.25,3211.6,3211.5,6.69493221]
[1736908940207,0.25,3211.6,3211.5,6.6638]
[1736908940713,0.25,3212.0,3211.7,3.11361]
[1736908940901,0.25,3212.3,3212.2,6.66313]
[1736908941215,0.25,3212.5,3212.3,0.55]
[1736908941420,0.25,3212.5,3212.4,0.03112341]
[1736908941642,0.25,3212.5,3212.4,6.69405341]
[1736908941800,0.25,3212.5,3212.4,6.66293]
[1736908942213,0.25,3212.5,3212.4,6.11293]
[1736908943198,0.25,3212.3,3212.2,3.32111]
[1736908943902,0.5,3212.3,3212.2,3.32111]
[1736908944160,0.25,3212.3,3212.2,3.32111]
[1736908944291,0.25,3212.3,3212.2,6.32111]
[1736908944626,0.25,3212.5,3212.4,6.66293]
[1736908947105,0.25,3212.5,3212.4,6.11293]
[1736908947332,0.5,3212.5,3212.4,3.32093]
[1736908947990,0.5,3212.5,3212.4,0.208]
[1736908948189,0.25,3211.9,3211.8,3.11351]
[1736908948425,0.25,3211.9,3211.8,6.32151]
[1736908949325,0.25,3212.1,3212.0,3.66332]